bitfinex-derivatives/quotes_ETHF0:USTF0_20250830
["timestamp","ask_amount","ask_price","bid_price","bid_amount"]
[1756537373387,1.39010408,4401.4,4401.3,3.9223]
[1756537373681,0.70981983,4401.4,4401.3,3.9223]
[1756537375890,0.70981983,4401.4,4401.3,3.2078]
[1756537376091,0.70981983,4401.4,4401.3,0.231]
[1756537378202,0.40291983,4401.4,4401.3,0.231]
[1756537378497,0.70981983,4401.4,4401.3,0.231]
[1756537379195,0.3069,4401.3,4400.8,3.5034]
[1756537379386,0.493,4401.0,4400.9,0.7145]
[1756537379588,0.70981983,4401.0,4400.9,0.4189]
[1756537379792,0.70981983,4401.0,4400.9,0.1879]
[1756537379997,0.70981983,4401.0,4400.9,0.7145]
[1756537380802,0.3069,4400.9,4400.6,32.713]
[1756537381101,0.493,4400.7,4400.6,32.713]
[1756537381299,0.70981983,4400.7,4400.6,32.944]
[1756537382196,0.70979958,4400.7,4400.6,32.713]
[1756537382402,0.70979958,4400.7,4400.6,32.944]
[1756537383304,0.70979958,4400.7,4400.0,0.53153]
[1756537383305,0.493,4400.1,4400.0,0.53153]
[1756537383600,0.71111771,4400.1,4400.0,0.95043]
[1756537383806,0.71111771,4400.1,4400.0,1.24603]
[1756537383807,0.493,4400.1,4400.0,1.24603]
[1756537384604,0.493,4400.1,4400.0,0.53153]
[1756537384804,0.493,4400.1,4400.0,1.24603]
[1756537385204,3.062576,4400.1,4400.0,1.24603]
[1756537387307,3.062576,4400.1,4400.0,0.76253]
[1756537388007,3.062576,4400.1,4400.0,0.53153]
[1756537388308,3.062576,4400.1,4400.0,0.76253]
[1756537388805,3.062576,4400.1,4400.0,1.25943]
[1756537389902,3.062576,4400.1,4400.0,0.95573]
[1756537391205,0.2885,4401.8,4400.0,5.273]
[1756537391402,0.21772706,4401.7,4401.4,3.2078]
[1756537391605,0.2885,4402.1,4401.5,0.233]
[1756537393506,0.2885,4402.1,4401.9,3.2078]
[1756537393709,0.2885,4402.1,4402.0,0.233]
[1756537395408,0.4832,4403.0,4402.0,4.233]
[1756537395607,0.4832,4403.0,4402.9,3.2078]
[1756537395807,0.2885,4403.0,4402.9,3.4398]
[1756537397412,0.4832,4403.0,4402.9,3.4398]
[1756537397619,0.2885,4404.0,4402.9,3.4398]
[1756537397919,2.569576,4403.0,4402.9,3.4398]
[1756537398510,2.569576,4403.0,4402.9,7.66692]
[1756537398710,2.569576,4403.0,4402.9,7.4398]
[1756537398906,2.569576,4403.0,4402.9,7.66692]
[1756537399216,2.242176,4403.0,4402.9,7.66692]
[1756537399606,0.2885,4404.4,4403.0,0.40877]
[1756537399815,0.4832,4404.1,4404.0,3.2078]
[1756537400015,0.4832,4404.1,4404.0,3.4408]
[1756537400911,0.4832,4404.1,4404.0,3.2078]
[1756537401108,0.4832,4404.1,4404.0,3.4408]
[1756537401517,0.4832,4404.1,4404.0,3.2078]
[1756537401817,0.4832,4404.1,4404.0,3.4408]
[1756537402813,3.052776,4404.1,4404.0,3.4408]
[1756537404119,3.052776,4404.1,4404.0,3.2078]
[1756537404319,3.052776,4404.1,4404.0,3.4408]
[1756537405419,3.052776,4404.1,4404.0,3.2078]
[1756537405617,3.052776,4404.1,4404.0,3.4398]
[1756537405820,3.052776,4404.1,4404.0,0.232]
[1756537406122,0.4832,4403.6,4403.5,3.2078]
[1756537406623,0.4832,4403.6,4403.5,3.4398]
[1756537408423,0.4832,4403.6,4403.5,3.2078]
[1756537408626,0.4832,4403.6,4403.5,3.4398]
[1756537409229,0.2885,4403.6,4403.5,3.4398]
[1756537410324,3.052776,4403.6,4403.5,3.4398]
[1756537410523,3.052776,4403.6,4403.5,3.2078]
[1756537411027,3.052776,4403.6,4403.5,3.4398]
[1756537412427,3.052776,4403.6,4403.5,0.232]
[1756537412428,2.764276,4403.6,4403.5,0.232]
[1756537413127,3.052776,4403.6,4403.5,0.232]
[1756537416223,0.1947,4403.0,4402.9,3.2078]
[1756537416417,0.4832,4403.0,4402.9,3.2078]
[1756537416621,0.4832,4403.0,4402.9,3.4398]
[1756537417229,0.4832,4403.0,4402.9,3.2078]
[1756537417729,0.4832,4403.0,4402.9,3.4398]
[1756537418631,0.2885,4403.0,4402.9,3.4398]
[1756537419331,0.4904,4403.0,4402.9,3.4398]
[1756537420330,3.059976,4403.0,4402.9,3.4398]
[1756537421231,3.28512011,4403.0,4402.9,3.4398]
[1756537421728,3.2078,4404.2,4403.1,0.4739]
[1756537421929,0.2019,4403.2,4403.1,0.4739]
[1756537422130,0.2019,4403.2,4403.1,0.7059]
[1756537422827,3.2078,4404.2,4403.1,0.7059]
[1756537423128,0.2019,4404.1,4404.0,0.4739]
[1756537423330,0.2019,4404.1,4404.0,0.7059]
[1756537423628,0.493,4404.1,4404.0,0.7059]
[1756537424831,3.062576,4404.1,4404.0,0.7059]
[1756537425034,2.569576,4404.1,4404.0,0.7059]
[1756537425730,3.062576,4404.1,4404.0,0.7059]
[1756537427333,3.062576,4404.1,4404.0,0.4226]
[1756537427731,3.062576,4404.1,4404.0,0.1906]
[1756537428128,3.062576,4404.1,4403.7,0.2833]
[1756537428334,2.771476,4404.1,4403.8,0.5153]
[1756537428532,0.493,4403.9,4403.8,0.7059]
[1756537430132,0.493,4403.9,4403.8,0.4739]
[1756537430334,0.493,4403.9,4403.8,0.7059]
[1756537432832,0.493,4403.9,4403.8,0.4739]
[1756537433036,0.493,4403.9,4403.8,0.7049]
[1756537433738,0.71563322,4403.9,4403.8,0.7049]
[1756537434838,0.71562549,4403.9,4403.8,0.7049]
[1756537435236,0.71562549,4403.9,4403.8,0.4739]
[1756537435439,0.71562549,4403.9,4403.8,0.7049]
[1756537435834,0.71562549,4403.9,4403.8,0.4739]
[1756537436141,0.71562549,4403.9,4403.8,0.7049]
[1756537437633,0.71562549,4403.9,4403.8,0.231]
[1756537437838,0.71562549,4403.9,4403.8,0.7049]
[1756537439628,0.71562549,4403.9,4403.8,0.4739]
[1756537439834,0.2911,4403.8,4403.4,3.2078]
[1756537440034,0.493,4403.5,4403.4,3.6817]
[1756537440231,0.71562549,4403.5,4403.4,3.9127]
[1756537440934,0.42452549,4403.5,4403.4,3.9127]
[1756537441139,0.22264723,4403.5,4403.4,3.9127]
[1756537444331,2.860676,4403.8,4403.4,3.6294]
[1756537444536,2.860676,4403.8,4403.6,0.4739]
[1756537444537,0.70799179,4403.7,4403.6,0.4739]
[1756537445141,0.70799203,4403.7,4403.6,0.4739]
[1756537445738,0.70799203,4403.7,4403.6,0.7049]
[1756537446340,0.49311214,4403.7,4403.6,0.7049]
[1756537446545,0.69501214,4403.7,4403.6,0.7049]
[1756537446743,0.69501214,4403.7,4403.6,0.4739]
[1756537446943,0.69501214,4403.7,4403.6,0.7049]
[1756537448052,0.6950719,4403.7,4403.6,0.7049]
[1756537451743,0.6950719,4403.7,4403.6,0.4739]
[1756537451950,0.6950719,4403.7,4403.6,0.7049]
[1756537454145,0.21505179,4403.7,4403.6,0.7049]
[1756537454943,0.39985179,4403.7,4403.6,0.7049]
[1756537455146,0.67762423,4403.7,4403.6,0.4739]
[1756537455350,0.21532423,4403.7,4403.6,0.7049]
[1756537455756,0.21532782,4403.7,4403.6,0.7049]
[1756537459156,0.67762782,4403.7,4403.6,0.7049]
[1756537459354,0.21532782,4403.7,4403.6,0.7049]
[1756537461654,0.21532782,4403.7,4403.6,0.93198]
[1756537461958,0.2775,4405.2,4404.4,0.3047]
[1756537462255,0.67759409,4405.1,4405.0,0.5059]
[1756537462459,0.67759409,4405.1,4405.0,0.7159]
[1756537464051,3.24717009,4405.1,4405.0,0.7159]
[1756537464256,3.24717009,4405.1,4405.0,0.21]
[1756537464651,2.96967009,4405.1,4405.0,0.231]
[1756537464956,0.4623,4404.7,4404.6,3.409]
[1756537465149,0.67759409,4404.7,4404.6,3.64]
[1756537465354,0.2775,4404.6,4404.0,3.2078]
[1756537465556,0.4623,4404.1,4404.0,3.7137]
[1756537465755,0.67722355,4404.1,4404.0,3.2078]
[1756537465961,0.21492355,4404.1,4404.0,0.7369]
[1756537466159,0.67722561,4404.1,4404.0,3.7137]
[1756537466361,0.67722561,4404.1,4404.0,0.7369]
[1756537466961,0.21492561,4404.1,4404.0,0.7369]
[1756537467567,0.21492561,4404.1,4404.0,5.37263999]
[1756537467864,3.031876,4405.1,4405.0,0.5059]
[1756537468068,3.2467405,4405.1,4405.0,0.7369]
[1756537468763,3.2467405,4405.1,4404.8,3.2078]
[1756537468764,0.2775,4404.6,4404.4,0.3047]
[1756537468958,0.2775,4404.4,4404.3,3.5125]
[1756537469165,0.67716656,4404.4,4404.3,0.231]
[1756537469969,0.67716656,4404.4,4403.8,3.2078]
[1756537470168,0.4623,4404.0,4403.9,0.231]
[1756537470472,0.67716656,4404.0,4403.9,0.231]
[1756537470876,0.67716656,4404.0,4403.9,0.7369]
[1756537471372,0.39966656,4404.0,4403.9,0.7369]
[1756537471574,0.39966656,4404.0,4403.9,0.5059]
[1756537471773,0.39966656,4404.0,4403.9,0.7369]
[1756537472071,0.67716656,4404.0,4403.9,0.7369]
[1756537472667,0.67720968,4404.0,4403.9,0.7369]
[1756537473170,0.21490968,4404.0,4403.9,0.7369]
[1756537474173,0.21490968,4404.0,4403.9,0.5059]
[1756537474374,0.67720968,4404.0,4403.9,0.5059]
[1756537474777,0.67720968,4404.0,4403.9,0.231]
[1756537475074,0.4623,4403.9,4403.8,3.5125]
[1756537475375,0.67720968,4403.9,4403.8,3.7137]
[1756537475575,0.67720968,4403.9,4403.8,3.9447]
[1756537476081,0.4623,4403.9,4403.8,3.9447]
[1756537476373,0.22261793,4403.9,4403.8,3.9447]
[1756537476768,0.40741793,4403.9,4403.8,3.9447]
[1756537476970,0.70281793,4403.9,4403.8,3.9447]
[1756537478367,0.70281793,4403.9,4403.8,3.7137]
[1756537478576,0.70281793,4403.9,4401.2,1.02235]
[1756537478577,0.2954,4403.8,4403.3,3.4997]
[1756537478773,0.4941,4403.4,4403.3,3.6946]
[1756537479074,0.71671793,4403.4,4403.3,3.9256]
[1756537480672,0.42131793,4403.4,4403.3,3.9256]
[1756537481878,0.71671793,4403.4,4403.3,3.2078]
[1756537482079,0.4941,4403.0,4402.8,3.2078]
[1756537482372,0.71671793,4403.0,4402.9,33.2239]
[1756537483272,0.42131793,4403.0,4402.9,33.2239]
[1756537483578,0.22261793,4403.0,4402.9,33.2239]
[1756537485273,2.79219393,4403.0,4402.9,33.2239]
[1756537485480,2.79219393,4403.0,4402.9,32.9929]
[1756537485674,2.79219393,4403.0,4402.9,33.2239]
[1756537486879,2.79196649,4403.0,4402.9,33.2239]
[1756537487278,2.79196649,4403.0,4402.9,32.9929]
[1756537487279,3.08736649,4403.0,4402.9,32.9929]
[1756537487582,3.08736649,4403.0,4402.9,32.932]
[1756537487780,3.08736649,4403.0,4402.9,33.2239]
[1756537488179,3.08736649,4403.0,4402.9,32.701]
[1756537488484,0.4941,4402.9,4402.8,3.2078]
[1756537488674,0.71649049,4402.9,4402.8,3.4388]
[1756537489475,0.2954,4402.8,4402.3,3.2078]
[1756537489777,0.4941,4402.4,4402.3,3.6946]
[1756537489982,0.22229274,4402.4,4402.3,3.9256]
[1756537491181,0.42099274,4402.4,4402.3,3.9256]
[1756537491580,0.71639274,4402.4,4402.3,3.6946]
[1756537491781,0.71639274,4402.4,4402.3,3.9256]
[1756537493278,0.71639274,4402.4,4401.8,3.4997]
[1756537493476,0.4941,4401.9,4401.8,3.6946]
[1756537493676,0.4941,4401.9,4401.8,3.9256]
[1756537493874,0.4941,4401.9,4401.8,3.6946]
[1756537494080,0.4941,4401.9,4401.8,3.4027]
[1756537494283,0.2954,4401.8,4401.5,32.9939]
[1756537494482,0.71621522,4401.7,4401.6,0.231]
[1756537495080,0.71621522,4401.7,4401.6,0.7178]
[1756537495483,0.71621522,4401.7,4401.6,0.4259]
[1756537495679,0.71621522,4401.7,4401.6,0.231]
[1756537495876,0.2954,4401.6,4401.4,0.2919]
[1756537496187,0.4941,4401.5,4401.4,0.4868]
[1756537496889,0.71612196,4401.5,4401.4,0.4868]
[1756537497088,0.71612196,4401.5,4401.4,0.7178]
[1756537497289,0.71614724,4401.5,4401.4,0.7178]
[1756537498285,0.71601915,4401.5,4401.4,0.7178]
[1756537498788,0.22191915,4401.5,4401.4,0.7178]
[1756537498977,0.71601915,4401.5,4401.4,0.4868]
[1756537499183,0.42061915,4401.5,4401.4,0.7178]
[1756537499484,0.22191915,4401.5,4401.4,0.7178]
[1756537500393,2.79149515,4401.5,4401.4,0.7178]
[1756537501187,2.99019515,4401.5,4401.4,0.7178]
[1756537501384,3.28559515,4401.5,4401.4,0.1949]
[1756537501585,3.28559515,4401.5,4401.4,0.7178]
[1756537501982,0.2954,4401.4,4401.3,3.2078]
[1756537502185,0.2954,4401.3,4400.6,0.2919]
[1756537502388,0.4941,4400.8,4400.7,0.231]
[1756537502585,0.1987,4400.6,4399.8,3.2078]
[1756537502790,0.4941,4400.1,4400.0,0.72643]
[1756537502985,0.4941,4400.1,4400.0,0.95743]
[1756537503588,0.4941,4400.1,4400.0,0.72643]
[1756537503786,0.4941,4400.1,4400.0,1.24933]
[1756537505287,3.063676,4400.1,4400.0,1.24933]
[1756537505689,2.768276,4400.1,4400.0,1.24933]
[1756537506395,2.768276,4400.1,4400.0,0.76253]
[1756537506396,3.063676,4400.1,4400.0,0.76253]
[1756537507095,3.063676,4400.1,4400.0,0.53153]
[1756537507288,3.27606375,4400.1,4400.0,0.53153]
[1756537507488,3.063676,4400.1,4400.0,0.53153]
[1756537508183,3.27602983,4400.1,4400.0,0.53153]
[1756537510997,3.27602983,4400.1,4400.0,1.01883]
[1756537513795,2.98062275,4400.1,4400.0,1.01883]
[1756537514294,3.28152275,4400.1,4400.0,1.24983]
[1756537514796,3.28152275,4400.1,4400.0,1.01883]
[1756537515096,3.28152275,4400.1,4400.0,0.53153]
[1756537516196,3.28152275,4400.1,4400.0,1.01883]
[1756537517503,3.28173395,4400.1,4400.0,1.01883]
[1756537518599,3.28173395,4400.1,4400.0,0.53153]
[1756537518800,3.28173395,4400.1,4400.0,0.72343]
[1756537518997,3.28173395,4400.1,4400.0,1.01883]
[1756537521203,3.94108209,4400.1,4400.0,1.01883]
[1756537521404,3.94108209,4400.1,4400.0,0.53153]
[1756537525103,1.6350318,4401.4,4400.5,10.2253]
[1756537525314,0.2012,4402.7,4401.3,3.2078]
[1756537525607,0.5021,4402.6,4402.2,3.2078]
[1756537525909,0.3009,4402.5,4402.3,0.233]
[1756537526100,0.3009,4403.5,4402.3,0.233]
[1756537526302,0.5021,4402.9,4402.8,3.2078]
[1756537526508,0.3009,4403.7,4402.8,3.4408]
[1756537526709,0.3009,4403.7,4402.9,0.40878]
[1756537527411,3.2078,4403.8,4402.9,0.40878]
[1756537527703,3.2078,4403.8,4402.8,3.2078]
[1756537527911,0.5021,4402.9,4402.2,33.13784]
[1756537528109,0.5021,4402.9,4402.8,3.2078]
[1756537528411,0.5021,4402.9,4402.8,3.4408]
[1756537528605,2.569576,4403.6,4402.8,3.4408]
[1756537528813,0.5021,4403.4,4402.8,3.4408]
[1756537529008,0.3009,4402.9,4402.8,3.2078]
[1756537529311,0.5021,4402.9,4402.8,3.4408]
[1756537529707,0.3009,4402.9,4402.8,3.4408]
[1756537529908,2.569576,4403.6,4402.8,3.4408]
[1756537530109,0.3009,4403.5,4402.8,3.4408]
[1756537530311,0.5021,4403.5,4402.8,0.233]
[1756537530509,0.5021,4403.5,4402.8,3.4408]
[1756537530705,0.3009,4402.9,4402.4,3.2078]
[1756537530911,0.3009,4403.5,4402.5,0.233]
[1756537531212,2.569576,4403.6,4402.4,3.2078]
[1756537531414,0.3009,4403.5,4402.5,0.233]
[1756537531707,2.569576,4403.6,4402.4,3.2078]
[1756537532013,0.5021,4402.7,4402.6,0.233]
[1756537532410,0.3009,4402.7,4402.6,0.233]
[1756537532610,0.3009,4403.5,4402.6,0.233]
[1756537533012,0.3009,4402.6,4402.4,3.2078]
[1756537533211,0.5021,4402.6,4402.5,0.233]
[1756537534010,0.2012,4402.6,4402.5,0.233]
[1756537534212,0.5021,4402.6,4402.5,0.233]
[1756537534611,0.3009,4403.5,4402.4,3.2078]
[1756537534918,0.2012,4402.0,4401.9,3.2078]
[1756537535109,0.5021,4402.0,4401.9,3.4408]
[1756537535310,3.071676,4402.0,4401.9,3.4408]
[1756537536908,3.071676,4402.0,4401.9,3.4437]
[1756537539212,3.071676,4402.0,4401.9,3.4408]
[1756537540411,3.071676,4402.0,4401.9,3.2078]
[1756537540711,3.071676,4402.0,4401.9,3.4408]
[1756537541416,3.071676,4402.0,4401.9,3.4437]
[1756537543414,2.568476,4402.0,4401.9,7.67087]
[1756537544217,3.059576,4402.0,4401.9,3.2107]
[1756537544420,2.568476,4402.0,4401.9,4.2359]
[1756537544719,3.059576,4402.0,4401.9,0.0029]
[1756537544919,3.059576,4402.0,4401.9,0.2348]
[1756537545114,0.4911,4401.9,4401.8,3.2078]
[1756537545314,0.4911,4401.9,4401.8,3.4408]
[1756537547207,2.568476,4402.0,4401.8,3.4408]
[1756537547410,2.862176,4402.0,4401.8,3.4408]
[1756537547612,0.2937,4401.9,4401.8,3.4408]
[1756537547824,0.4911,4401.9,4401.8,3.4408]
[1756537548012,2.568476,4402.0,4401.8,3.4408]
[1756537548212,2.568476,4402.0,4401.8,7.4408]
[1756537550420,2.568476,4402.0,4401.9,0.40888]
[1756537551214,2.568476,4402.0,4401.9,0.64188]
[1756537553216,0.2937,4401.9,4401.8,7.2078]
[1756537553418,0.4911,4401.9,4401.8,7.4408]
[1756537553821,0.2937,4401.9,4401.8,7.4408]
[1756537554518,2.568476,4402.0,4401.8,7.84968]
[1756537555116,2.862176,4402.0,4401.8,7.84968]
[1756537555822,2.568476,4402.0,4401.8,7.84968]
[1756537556611,2.765876,4402.0,4401.9,0.233]
[1756537556814,3.059576,4402.0,4401.9,0.233]
[1756537557718,2.765876,4402.0,4401.8,3.2078]
[1756537557916,0.4911,4401.9,4401.8,3.2078]
[1756537558114,0.1974,4401.5,4401.4,2.01735206]
[1756537558315,0.1974,4401.5,4401.4,0.233]
[1756537558522,0.4911,4401.5,4401.4,1.85198221]
[1756537558822,0.4911,4401.5,4401.4,0.233]
[1756537559517,0.1974,4401.3,4401.2,3.2078]
[1756537559723,0.4911,4401.3,4401.2,3.4408]
[1756537560226,3.059576,4401.3,4401.2,3.4408]
[1756537561027,3.059576,4401.3,4401.2,3.2078]
[1756537561322,2.568476,4401.3,4401.2,3.4408]
[1756537561717,2.862176,4401.3,4401.2,3.4408]
[1756537561916,2.862176,4401.3,4401.2,3.4398]
[1756537562627,2.568476,4401.3,4401.2,3.4398]
[1756537562830,2.24433241,4401.3,4401.2,7.66701]
[1756537563329,1.10839476,4401.3,4401.2,7.4398]
[1756537563533,1e-08,4401.3,4401.2,7.66701]
[1756537563828,1e-08,4401.3,4401.2,7.4398]
[1756537564023,1e-08,4401.3,4401.2,7.4408]
[1756537564224,1e-08,4401.3,4401.2,7.84974]
[1756537564820,0.2937,4403.4,4401.8,0.40888]
[1756537565016,0.4911,4402.5,4402.4,3.2078]
[1756537565624,0.4911,4402.5,4402.4,3.4408]
[1756537567424,3.2078,4403.5,4402.4,0.233]
[1756537567629,3.2078,4403.5,4401.9,5.23381408]
[1756537567630,0.284,4402.4,4402.2,1.62169047]
[1756537567819,0.4715,4402.2,4402.0,1.62169047]
[1756537568025,0.284,4402.1,4402.0,1.62169047]
[1756537568225,0.4715,4401.5,4401.4,2.02601408]
[1756537568420,0.4715,4401.5,4401.4,2.25901408]
[1756537568625,0.4715,4401.5,4401.4,2.02601408]
[1756537568825,0.1875,4401.5,4401.3,5.23381408]
[1756537569125,0.1875,4401.5,4401.4,0.233]
[1756537569323,0.4715,4401.5,4401.3,3.2078]
[1756537569524,5.777376,4402.5,4401.3,3.2078]
[1756537569525,0.4715,4401.4,4401.3,3.2078]
[1756537569731,0.4715,4401.4,4401.3,3.4408]
[1756537573436,3.2078,4402.5,4401.3,3.4408]
[1756537573640,0.4715,4401.8,4401.7,1.62285405]
[1756537573839,0.4715,4401.8,4401.7,1.85485405]
[1756537574528,4.4715,4401.8,4401.7,1.62285405]
[1756537574735,0.1875,4401.6,4401.1,1.62285405]
[1756537575033,0.1875,4401.3,4401.2,0.232]
[1756537575233,0.4715,4401.3,4401.2,0.232]
[1756537576938,0.4715,4401.3,4400.8,1.62285405]
[1756537576939,0.1875,4400.9,4400.8,1.62285405]
[1756537577139,0.1875,4400.7,4400.6,1.62285405]
[1756537577342,0.4715,4400.6,4400.5,1.62285405]
[1756537577534,0.4715,4400.6,4400.5,1.85485405]
[1756537578234,0.4715,4400.6,4400.5,0.232]
[1756537578841,0.4715,4400.6,4400.3,1.62285405]
[1756537579037,0.1875,4400.3,4400.2,4.83065405]
[1756537579338,0.4715,4400.3,4400.2,3.2078]
[1756537579537,0.4715,4400.3,4400.2,3.4398]
[1756537580332,3.041076,4400.3,4400.2,3.4398]
[1756537580734,3.041076,4400.3,4400.2,3.2078]
[1756537580934,3.041076,4400.3,4400.2,3.4398]
[1756537582842,2.569576,4400.3,4400.2,3.4398]
[1756537583637,3.041076,4400.3,4400.2,3.4398]
[1756537583837,3.041076,4400.3,4400.2,3.2078]
[1756537584441,3.041076,4400.3,4400.2,3.4398]
[1756537584843,3.041076,4400.3,4400.2,3.2078]
[1756537585044,3.041076,4400.3,4400.2,3.4398]
[1756537586943,3.041076,4400.3,4400.2,3.2078]
[1756537587145,3.041076,4400.3,4400.2,3.4398]
[1756537590051,3.041076,4400.3,4400.2,3.2078]
[1756537590351,3.041076,4400.3,4400.2,3.4398]
[1756537590652,3.041076,4400.3,4400.0,0.53153]
[1756537590944,3.041076,4400.3,4400.1,0.232]
[1756537591145,2.569576,4400.3,4400.0,0.53153]
[1756537591450,0.1875,4400.1,4400.0,0.53153]
[1756537591847,0.4715,4400.1,4400.0,0.53153]
[1756537595052,0.4715,4399.4,4399.3,0.4884]
[1756537595252,0.4715,4399.4,4399.3,0.7204]
[1756537599258,0.4715,4399.4,4399.3,0.232]
[1756537599451,0.4715,4399.4,4399.1,0.232]
[1756537599755,0.493,4399.3,4399.2,0.2011]
[1756537599950,0.493,4399.3,4399.2,0.5003]
[1756537600361,3.062576,4399.3,4399.2,0.5003]
[1756537600746,3.062576,4399.3,4398.7,3.2078]
[1756537600956,3.062576,4399.3,4399.1,0.232]
[1756537601152,3.062576,4399.3,4398.8,0.2992]
[1756537601360,0.493,4398.9,4398.8,0.7323]
[1756537602262,0.493,4398.9,4398.8,0.5003]
[1756537602860,0.493,4398.9,4398.8,0.2011]
[1756537603153,0.493,4398.9,4398.5,0.5312]
[1756537603358,0.1952,4398.7,4398.6,0.5003]
[1756537603561,0.493,4398.7,4398.6,0.5003]
[1756537603964,0.493,4398.3,4398.2,0.5003]
[1756537604565,0.1952,4398.3,4397.6,3.2078]
[1756537604860,0.493,4397.8,4397.7,0.5003]
[1756537605252,3.062576,4397.8,4397.7,0.5003]
[1756537607876,3.062576,4397.8,4397.7,0.2011]
[1756537609259,3.062576,4397.8,4397.7,0.5003]
[1756537610960,3.062576,4397.8,4397.7,0.2011]
[1756537612257,3.062576,4397.8,4397.5,0.5312]
[1756537612455,2.569576,4397.8,4397.5,0.5312]
[1756537612656,0.493,4397.6,4397.5,0.7323]
[1756537615454,3.062576,4397.6,4397.5,0.7323]
[1756537617078,3.062576,4397.6,4397.5,0.5003]
[1756537620558,6.764776,4397.6,4397.0,3.2078]
[1756537620770,0.493,4397.1,4397.0,3.7081]
[1756537622365,0.493,4397.1,4397.0,3.9401]
[1756537622565,0.493,4397.1,4397.0,3.4398]
[1756537622762,0.493,4397.1,4397.0,3.6409]
[1756537622962,0.493,4397.1,4397.0,3.9401]
[1756537625269,3.062576,4397.1,4397.0,3.9401]
[1756537627072,3.062576,4397.1,4397.0,3.7081]
[1756537627271,3.062576,4397.1,4397.0,3.9401]
[1756537630268,3.062576,4397.1,4397.0,5.56295405]
[1756537631372,3.062576,4397.1,4397.0,3.9401]
[1756537638470,3.062576,4397.1,4397.0,5.96611408]
[1756537640476,3.062576,4397.1,4397.0,5.73411408]
[1756537640671,3.062576,4397.1,4397.0,5.96611408]
[1756537641777,3.062576,4397.1,4397.0,5.96341408]
[1756537642381,3.062576,4397.1,4397.0,3.9374]
[1756537645883,3.062576,4397.1,4397.0,5.97384088]
[1756537646280,3.062576,4397.1,4397.0,3.9374]
[1756537647982,3.062576,4397.1,4397.0,3.7054]
[1756537648281,3.062576,4397.1,4397.0,3.9374]
[1756537648488,3.062576,4397.1,4397.0,5.97462429]
[1756537648489,2.569576,4397.1,4397.0,5.97462429]
[1756537648683,2.569576,4397.1,4397.0,7.9374]
[1756537648987,2.037576,4397.1,4397.0,7.9374]
[1756537649180,2.526576,4397.1,4397.0,0.7296]
[1756537651989,2.328876,4397.1,4397.0,0.7296]
[1756537652390,2.328876,4397.1,4397.0,0.4976]
[1756537652588,2.526576,4397.1,4397.0,0.7296]
[1756537653789,2.526576,4397.1,4397.0,0.4976]
[1756537653985,2.526576,4397.1,4397.0,0.7296]
[1756537655290,2.526576,4397.1,4396.7,2.83641972]
[1756537655495,0.2913,4397.0,4396.8,0.232]
[1756537656290,0.2913,4397.0,4396.8,3.06841972]
[1756537656496,0.489,4396.9,4396.8,2.83641972]
[1756537656691,2.348976,4397.1,4396.8,0.232]
[1756537656890,0.3067,4396.9,4396.8,0.232]
[1756537657197,0.4977,4396.8,4396.7,2.83641972]
[1756537657496,0.4977,4396.8,4396.7,3.06841972]
[1756537657692,0.3067,4396.8,4396.7,3.06841972]
[1756537658189,2.457976,4397.1,4396.7,2.83641972]
[1756537658395,0.3067,4396.9,4396.8,0.232]
[1756537658596,0.4977,4396.9,4396.7,2.83641972]
[1756537658899,0.4977,4396.8,4396.7,2.83641972]
[1756537659092,0.4977,4396.8,4396.7,0.232]
[1756537659288,0.4977,4396.8,4396.6,2.83641972]
[1756537659289,0.4977,4396.7,4396.6,2.83641972]
[1756537659497,0.4977,4396.7,4396.6,0.232]
[1756537659890,0.191,4396.3,4396.2,2.83641972]
[1756537660097,0.191,4396.3,4396.2,2.51942957]
[1756537660098,0.4977,4396.3,4396.2,2.51942957]
[1756537660393,3.2078,4396.5,4396.4,0.4823]
[1756537660700,3.2078,4396.5,4396.4,0.233]
[1756537660899,7.2078,4396.5,4396.1,0.233]
[1756537661590,2.569576,4396.3,4395.4,2.03712957]
[1756537661899,0.233,4396.2,4395.4,0.7153]
[1756537662096,3.2078,4396.0,4394.9,0.233]
[1756537662397,3.2078,4395.4,4395.0,0.233]
[1756537662600,3.2078,4395.4,4395.1,0.2834]
[1756537662994,3.2078,4395.4,4395.0,0.233]
[1756537663200,3.2078,4395.4,4394.3,5.24492957]
[1756537663201,4.22752,4395.3,4394.3,3.2078]
[1756537663405,0.233,4395.2,4394.3,3.6397]
[1756537665304,2.569576,4395.1,4394.3,3.6397]
[1756537665503,2.569576,4395.1,4393.9,0.2834]
[1756537665504,3.2078,4394.9,4393.9,0.2834]
[1756537665709,0.233,4394.8,4394.0,0.233]
[1756537666201,0.233,4394.8,4393.7,3.2078]
[1756537666202,3.2078,4394.9,4393.8,0.2834]
[1756537666401,0.233,4394.8,4394.0,0.2834]
[1756537666599,3.2078,4394.9,4394.8,0.1989]
[1756537666903,3.2078,4394.9,4394.8,0.4823]
[1756537668206,3.2078,4394.9,4394.8,0.2834]
[1756537668506,3.2078,4394.9,4394.2,0.233]
[1756537668805,3.2078,4394.9,4394.1,0.30358464]
[1756537668999,3.2078,4394.9,4394.2,0.2834]
[1756537669400,3.2078,4394.9,4394.1,0.10468464]
[1756537669700,3.2078,4394.9,4394.1,0.30358464]
[1756537669905,3.2078,4394.9,4394.8,0.4823]
[1756537671405,3.2078,4396.0,4395.9,0.1989]
[1756537671702,3.2078,4396.0,4395.9,0.4823]
[1756537672406,3.4418,4396.6,4396.0,0.2834]
[1756537673006,3.2078,4396.6,4396.0,0.1989]